Cogmind - Beta 16 @@@ ROGUE MODE // 2025.11.02 @ 02:37:15 Player: Red Box Result: Destroyed by MG-M3I(j) with Overtuned Pulse Rifle Performance ------------- Evolutions (0) 0 Regions Visited (4) 800 Robots Destroyed (51) 255 Value Destroyed (1533) 1533 Prototype IDs (22) 440 Alien Tech Used (0) 0 Bonus (1160) 1160 TOTAL SCORE: 4188 Bonus ------- Follower Combat Kills 360 Registered with UFD 300 Met Optimus in HQ 500 Cogmind --------- Core Integrity 0/250 Matter 300/300 Energy 275/275 System Corruption 0% Temperature Warm (171) Movement Treading (260) Ox1 Location -8/Scraptown Parts ------- > --- POWER (1) -------- Deuterium Engine > --- PROPULSION (2) --- Spiked Treads Spiked Treads > --- UTILITY (2) ------ High-capacity Storage Unit Hardened Medium Armor Plating > --- WEAPON (2) ------- Ion Cannon Assault Cannon > --- INVENTORY (20) --- Advanced Treads Armored Wheel Overtuned Scrapsphere Scrap Suit Experimental Signal Interpreter Improved Heavy Armor Plating Makeshift Kinetic Plating Authchip [Armor] Powered Cannon Minigun Enhanced Autogun Flak Cannon Flak Cannon Heavy Flak Cannon Shock Bomb Launcher Scythe Peak State ------------ > --- POWER ------------ Deuterium Engine > --- PROPULSION ------- Spiked Treads Spiked Treads > --- UTILITY ---------- High-capacity Storage Unit Hardened Medium Armor Plating > --- WEAPON ----------- Ion Cannon Enhanced Autogun > --- INVENTORY -------- Advanced Treads Armored Wheel Overtuned Scrapsphere Scrap Suit Improved Heat Sink Hardened Medium Armor Plating Improved Heavy Armor Plating Makeshift Kinetic Plating Authchip [Armor] Powered Cannon Minigun Assault Cannon Flak Cannon Flak Cannon Heavy Flak Cannon Shock Bomb Launcher Scythe [Rating: 25] Favorites ----------- Power Ion Engine Engine Ion Engine Propulsion Light Treads Treads Light Treads Leg Aluminum Leg Wheel Compact Wheel Utility High-capacity Storage Unit Device Improved Terrain Scanner Storage High-capacity Storage Unit Processor Visual Processing Unit Protection Hardened Medium Armor Plating Weapon Light Cannon Energy Cannon Ion Cannon Ballistic Gun Assault Rifle Ballistic Cannon Light Cannon Launcher Grenade Launcher Special Melee Weapon Datajack Build | -11 -10 -10 -8 -8 ------- Run | Yrd Mat Sub Rec Scr Slots Evolved . | . . . . . Power . | . . . . . Propulsion . | . . . . . Utility . | . . . . . Weapon . | . . . . . Parts Attached 47 | 8 7 15 7 10 Power 8 | 1 1 4 1 1 Engine 8 | 1 1 4 1 1 Core . | . . . . . Reactor . | . . . . . Propulsion 11 | 3 1 4 3 . Treads 5 | 2 1 . 2 . Leg 1 | 1 . . . . Wheel 5 | . . 4 1 . Hover . | . . . . . Flight . | . . . . . Utility 10 | 2 3 2 1 2 Device 2 | 1 1 . . . Storage 2 | 1 1 . . . Processor 1 | . 1 . . . Hackware . | . . . . . Protection 5 | . . 2 1 2 Artifact . | . . . . . Weapon 18 | 2 2 5 2 7 Energy Gun . | . . . . . Energy Cannon 3 | . . . . 3 Ballistic Gun 4 | 2 . 1 . 1 Ballistic Cannon 8 | . 2 3 1 2 Launcher 2 | . . 1 . 1 Special Weapon . | . . . . . Impact Weapon . | . . . . . Slashing Weapon . | . . . . . Piercing Weapon . | . . . . . Special Melee Weapon 1 | . . . 1 . Unidentified Prototypes 1 | . . . . 1 Parts Lost 4 | . . 4 . . Power . | . . . . . Propulsion 2 | . . 2 . . Utility . | . . . . . Weapon 2 | . . 2 . . Highest Loss Streak 2 | . . 2 . . To Critical Strikes . | . . . . . Average Backups 17 | 4 17 17 17 17 Power . | . . . . . Propulsion 2 | 4 4 4 . . Utility 4 | . 3 4 5 5 Weapon 9 | . 9 8 11 11 Tool/Special . | . . . . . Unused Backups 38 | . 3 5 8 22 Power . | . . . . . Propulsion 5 | . 1 1 . 3 Utility 14 | . 1 2 2 9 Weapon 19 | . 1 2 6 10 Tool/Special . | . . . . . Average Slot Usage (%) 99 | . 99 99 100 100 Engine 13 | . 14 13 14 14 Treads 19 | . 27 8 16 28 Wheel 8 | . . 19 11 . Device 6 | . 12 9 . . Storage 13 | . 14 13 14 14 Protection 7 | . . 4 14 14 Ballistic Gun 4 | . 16 . . . Ballistic Cannon 22 | . 11 27 27 26 Peak Build Rating 25 | 9 11 16 22 25 Average Rating 14 | 5 10 12 19 21 On Entrance 10 | . 9 9 16 20 Avg Prop Armor Cover (%) 7 | . . 6 8 . Naked Turns . | . . . . . Heaviest Build 69 | 15 52 55 64 69 Greatest Support 40 | 40 40 40 40 40 Greatest Overweight (x) 3 | 2 1 3 3 1 Average Overweight (x) 1 | . . 1 1 1 Largest Inventory Capacity 20 | 8 20 20 20 20 Average Capacity 19 | 7 19 19 20 20 Most Carried 20 | 8 20 20 20 20 Average Carried 19 | 5 17 19 19 19 Final Capacity 20 | 8 20 20 20 20 Final Carried 20 | 7 19 20 20 19 Class Distribution -------------------- 68% | Mutant 31% | Commander-Mutant Dominant Class ---------------- Mutant | -10/Materials Mutant | -10/Subcaves Commander-Mutant | -8/Recycling Commander-Mutant | -8/Scraptown Resources | -11 -10 -10 -8 -8 ----------- Run | Yrd Mat Sub Rec Scr Matter Collected 2119 | 318 594 706 331 170 Remotely . | . . . . . Salvage Created 1671 | 106 706 356 215 288 Parts 103 | 6 53 20 12 12 Haulers Intercepted 2 | . 2 . . . Recyclers Shooed 1 | 1 . . . . Parts Field Recycled . | . . . . . Retrieved Matter . | . . . . . Parts Self-Destructed 22 | . . 20 . 2 Prevented . | . . . . . Parts Restored . | . . . . . Kills | -11 -10 -10 -8 -8 ------- Run | Yrd Mat Sub Rec Scr Combat Hostiles Destroyed 41 | . 17 14 5 5 Guns 11 | . 11 . . . Cannons 29 | . 6 13 5 5 AOE 1 | . . 1 . . Classes Destroyed 13 | 2 4 3 1 3 Tunneler 2 | 2 . . . . Hauler 2 | . 2 . . . Recycler 1 | 1 . . . . Turret 2 | . . 2 . . Watcher 3 | . 3 . . . Swarmer 8 | . 5 3 . . Grunt 17 | . 12 3 2 . Duelist 1 | . . . 1 . Sentry 3 | . . 1 2 . Subdweller 7 | . . 7 . . Federalist 1 | . . . . 1 Guru 1 | . . . . 1 Scrapper 3 | . . . . 3 Best Kill Streak 4 | 2 4 2 2 3 Combat Bots Only 4 | . 4 2 2 3 Max Kills in Single Turn 1 | 1 1 1 1 1 Gunslinging . | . . . . . Exploded 1 | . . 1 . . Melee . | . . . . . Uniques/NPCs Destroyed . | . . . . . Combat | -11 -10 -10 -8 -8 -------- Run | Yrd Mat Sub Rec Scr Hostile Shots Fired 190 | . 61 97 10 22 Missed 68 | . 20 40 4 4 Hits 122 | . 41 57 6 18 Projectile 122 | . 41 57 6 18 AOE 1 | . . 1 . . Critical Strikes 2 | . 1 1 . . Damage Taken 1727 | . 412 1050 96 169 Core 267 | . 38 170 . 59 Absorbed by Shields 38 | . . . . 38 Regen/Repaired (Parts) 70 | . 70 . . . Core Remaining (%) 100 | 100 . . . . Volleys Fired 132 | 10 46 58 6 12 Largest 2 | 2 2 2 2 2 Hottest 120 | 40 60 60 67 120 Shots Fired 252 | 20 91 106 12 23 Gun 96 | 20 72 4 . . Cannon 150 | . 19 97 12 22 Launcher 6 | . . 5 . 1 Special . | . . . . . Kinetic 233 | 20 91 101 12 9 Thermal 13 | . . . . 13 Explosive 5 | . . 5 . . Electromagnetic 1 | . . . . 1 Robot Hit Streak 14 | 4 7 14 13 6 Robot Miss Streak 4 | 2 4 3 1 1 Penetration Max . | . . . . . Secondary Targets 1 | . 1 . . . Max Gunslinging Chain 1 | . 1 . . . Shots Hit Robots 175 | 12 55 60 36 12 Core Hits 78 | 4 28 28 11 7 Critical Kills 1 | . 1 . . . Critical Parts Destroyed 1 | 1 . . . . Critical Strikes 8 | 1 1 6 . . Destroy 2 | 1 1 . . . Blast 6 | . . 6 . . Melee Attacks 27 | . . . 27 . Impact . | . . . . . Slashing . | . . . . . Piercing . | . . . . . Sneak Attacks 26 | . . . 26 . Combat Hostiles . | . . . . . Follow-up Attacks . | . . . . . Damage Inflicted 2548 | 149 821 1078 179 321 Guns 763 | 149 614 . . . Cannons 1506 | . 207 842 179 278 Explosions 279 | . . 236 . 43 Melee . | . . . . . Ramming . | . . . . . Kinetic 2130 | 149 821 842 179 139 Thermal 139 | . . . . 139 Explosive 236 | . . 236 . . Electromagnetic 43 | . . . . 43 Impact . | . . . . . Slashing . | . . . . . Piercing . | . . . . . Highest Corruption . | . . . . . Average Corruption . | . . . . . Corruption Purged . | . . . . . Corruption Blocked . | . . . . . Overload Shots . | . . . . . Overflow Damage 12 | . . 12 . . Projectiles 12 | . . 12 . . Explosions . | . . . . . Melee . | . . . . . Knockbacks 11 | . 1 9 1 . Impact . | . . . . . Kinetic 11 | . 1 9 1 . Secondary . | . . . . . Self-Inflicted Damage 27 | . . 27 . . Shots 1 | . . 1 . . Rammed . | . . . . . Targets Rammed . | . . . . . Kicked . | . . . . . Crushed . | . . . . . Highest Temperature 171 | . 20 . 81 171 Average Temperature 46 | . 9 . 34 62 Received Heat Transfer 495 | . 150 261 36 48 Siege Activations . | . . . . . Martial Activations . | . . . . . Shielding Activations . | . . . . . Robots Disrupted . | . . . . . Combat Hostiles . | . . . . . Robots Corrupted . | . . . . . Combat Hostiles . | . . . . . Parts Fried 1 | . . . . 1 Impact Corruptions . | . . . . . Robots Melted . | . . . . . Combat Hostiles . | . . . . . Parts Melted . | . . . . . Heat Transferred 198 | . . . . 198 Parts Sabotaged . | . . . . . Parts Stolen . | . . . . . Parts Stripped . | . . . . . Power Chain Reactions . | . . . . . Alert | -11 -10 -10 -8 -8 ------- Run | Yrd Mat Sub Rec Scr Maximum Alert Level . | . . . . . Low Security (%) 100 | 100 100 . 100 . Level 1 . | . . . . . Level 2 . | . . . . . Level 3 . | . . . . . Level 4 . | . . . . . Level 5 . | . . . . . High Security . | . . . . . Max Security . | . . . . . Peak Influence 132 | 5 132 . 124 . Initial 124 | . . . 124 . Average 30 | 1 36 . 20 . Influence Increases 1202 | 15 545 370 272 . Destroy 0b10 Robot/C 620 | . 340 180 100 . Destroy 0b10 Robot/NC 40 | 15 25 . . . Destroy Leader 80 | . 70 10 . . Allied During Kill 4 | . . . 4 . Successful Hack 68 | . 35 . 33 . Select Force Hacks 180 | . 60 . 120 . Disable Machine 15 | . 15 . . . Lose Combat Pursuer 195 | . . 180 15 . Influence Decreases 1202 | 15 417 237 533 . Entered New Map 199 | . . 62 137 . Time Decay 930 | 15 417 165 333 . Lost Part 10 | . . 10 . . Purge Threat 63 | . . . 63 . Squads Dispatched 5 | . 5 . . . Investigation 4 | . 4 . . . Extermination . | . . . . . Reinforcement 1 | . 1 . . . Assault . | . . . . . Garrison . | . . . . . Intercept . | . . . . . Searches Triggered . | . . . . . Construction Impeded . | . . . . . Haulers Reinforced . | . . . . . Active Scanning Responses . | . . . . . Cargo Convoy Interrupts . | . . . . . Stealth | -11 -10 -10 -8 -8 --------- Run | Yrd Mat Sub Rec Scr Distress Signals 1 | . 1 . . . Communications Jammed . | . . . . . Distress Signals . | . . . . . Times Spotted 79 | . 22 24 6 27 Peak Tracking Total 7 | . 3 6 2 7 Tactical Retreats 4 | . . 3 1 . Traps | -11 -10 -10 -8 -8 ------- Run | Yrd Mat Sub Rec Scr Traps Triggered 3 | . 1 2 . . Indirectly . | . . . . . Trap Hack Attempts . | . . . . . Triggered . | . . . . . Disarmed . | . . . . . Reprogrammed . | . . . . . Reused 1 | . . 1 . . Traps Extracted . | . . . . . Installed 1 | . . 1 . . Triggered . | . . . . . Most Traps Carried 1 | . . 1 . . Machines | -11 -10 -10 -8 -8 ---------- Run | Yrd Mat Sub Rec Scr Machines Disabled 5 | . 1 4 . . Max in Single Turn 2 | . 1 2 . . Machines Repaired . | . . . . . Machines Dismantled . | . . . . . Machines Sabotaged . | . . . . . Overloaded Fab Kills . | . . . . . Hacking | -11 -10 -10 -8 -8 --------- Run | Yrd Mat Sub Rec Scr Machines Accessed 31 | . 10 4 12 5 Terminals 13 | . 7 . 6 . Fabricators . | . . . . . Repair Stations 1 | . 1 . . . Recycling Units 6 | . 2 . 4 . Scanalyzers . | . . . . . Garrison Access . | . . . . . Total Hacks 152 | . 34 16 60 42 Successful 120 | . 19 16 43 42 Failed 32 | . 15 . 17 . Catastrophic 3 | . . . 3 . Database Lockouts . | . . . . . Manual 39 | . 25 . 14 . Terminals 45 | . 25 . 20 . Fabricators . | . . . . . Repair Stations 2 | . 2 . . . Recycling Units 22 | . 7 . 15 . Scanalyzers . | . . . . . Garrison Access . | . . . . . Terminal Hacks 93 | . 5 16 30 42 Record 79 | . . 13 24 42 Part Schematic 3 | . . . 3 . Robot Schematic 1 | . . . 1 . Robot Analysis 2 | . 2 . . . Prototype ID Bank 2 | . 2 . . . Open Door 1 | . . 1 . . Terminal Index 1 | . 1 . . . Unreport Threat 1 | . . . 1 . Proto ID Catalog 1 | . . 1 . . Release Object 2 | . . 1 1 . Fabricator Hacks . | . . . . . Repair Station Hacks 2 | . 2 . . . Scan Component 1 | . 1 . . . Repair 1 | . 1 . . . Recycling Unit Hacks 5 | . 2 . 3 . Report Inventory 1 | . 1 . . . Retrieve Components 4 | . 1 . 3 . Scanalyzer . | . . . . . Garrison Access Hacks . | . . . . . Unauthorized Hacks 20 | . 10 . 10 . Terminals 9 | . 6 . 3 . Assimilate 1 | . 1 . . . Botnet 6 | . 3 . 3 . Disrupt 1 | . 1 . . . Operators 1 | . 1 . . . Fabricators . | . . . . . Repair Stations . | . . . . . Recycling Units 11 | . 4 . 7 . Reject 2 | . 1 . 1 . Recyclers 1 | . . . 1 . Mask 2 | . 1 . 1 . Tunnel 6 | . 2 . 4 . Scanalyzers . | . . . . . Garrison Access . | . . . . . Data Cores Recovered . | . . . . . Used . | . . . . . Hacking Detections 19 | . 10 . 9 . Full Trace Events 9 | . 3 . 6 . Feedback Events . | . . . . . Feedback Blocked . | . . . . . Robot Schematics Acquired 1 | . . . 1 . Robots Built . | . . . . . Authchips . | . . . . . Time . | . . . . . Total Robot Build Rating . | . . . . . Part Schematics Acquired 3 | . . . 3 . Parts Built . | . . . . . Authchips . | . . . . . Time . | . . . . . Total Part Build Rating . | . . . . . Part Studies Acquired . | . . . . . Parts Repaired 1 | . 1 . . . Time 13 | . 13 . . . Parts Recycled . | . . . . . Recycled Matter . | . . . . . Retrieved Matter . | . . . . . Retrieved Components 12 | . 7 . 5 . Parts Scanalyzed . | . . . . . Part Schematics Acquired . | . . . . . Parts Damaged . | . . . . . Bothacking | -11 -10 -10 -8 -8 ------------ Run | Yrd Mat Sub Rec Scr Used RIF Installer . | . . . . . Robots Hacked . | . . . . . Non-combat . | . . . . . Combat . | . . . . . Robot Hacks Applied . | . . . . . Relay Couplers Released . | . . . . . Fabnet Peak Effective % . | . . . . . Robots Rewired 10 | . . . 10 . Allies Hacked . | . . . . . Hacks Repelled . | . . . . . Allies | -11 -10 -10 -8 -8 -------- Run | Yrd Mat Sub Rec Scr Total Allies 11 | . 1 . 10 . Largest Group 10 | . 1 1 10 10 Highest-Rated Group 170 | . 10 10 170 170 Highest-Rated Ally 34 | . 10 10 34 34 Total Orders 4 | . . . 4 . STAY 2 | . . . 2 . FOLLOW 2 | . . . 2 . Ally Attacks 39 | . . . . 39 Total Damage 968 | . . . . 968 Kills 12 | . . . . 12 Allies Corrupted . | . . . . . Allies Melted 5 | . . . . 5 Intel | -11 -10 -10 -8 -8 ------- Run | Yrd Mat Sub Rec Scr Active Infowar (turns) 7894 | 72 4436 3386 . . Optics 474 | . 474 . . . Sensors 3390 | . 256 3134 . . Terrain 4030 | 72 3706 252 . . Robot Analysis Total 2 | . 2 . . . Derelict Logs Recovered 1 | . . 1 . . Drone Launches . | . . . . . Drone Recoveries . | . . . . . Exploration | -11 -10 -10 -8 -8 ------------- Run | Yrd Mat Sub Rec Scr Turns Passed 15905 | 162 4438 5185 2314 3806 Spaces Moved 8007 | 75 1686 3574 1237 1435 Core 12 | 12 . . . . Treads 4053 | 49 1686 509 374 1435 Legs 14 | 14 . . . . Wheels 3928 | . . 3065 863 . Hover . | . . . . . Flight . | . . . . . Fastest Speed 50 | 50 160 95 117 260 Average Speed 185 | 151 238 136 169 260 Slowest Speed 260 | 190 240 240 260 260 Overloaded Moves . | . . . . . Propulsion Burnouts . | . . . . . Robots Hopped . | . . . . . Potential Cave-ins . | . . . . . Cave-ins Triggered . | . . . . . Exploration Rate (%) 77 | 5 99 98 99 86 Regions Visited 4 Branch Regions 3 Pre-discovered Areas 8 | . 2 2 4 . Known Exits Taken 1 | . . 1 . . Unknown Exits Taken 3 | 1 1 . 1 . Scrap Searched 8 | . . 1 . 7 Spaces Dug . | . . . . . Terrain Destroyed 23 | . . 18 . 5 Melee . | . . . . . Projectile 5 | . . . . 5 AOE 18 | . . 18 . . Terrain Rammed . | . . . . . Walls Destroyed . | . . . . . Machines Disabled . | . . . . . Actions | -11 -10 -10 -8 -8 --------- Run | Yrd Mat Sub Rec Scr Total 8830 | 101 2016 3786 1434 1493 Wait 443 | . 250 65 128 . Move 8003 | 74 1685 3573 1236 1435 Hop . | . . . . . Pick Up 89 | 8 17 36 13 15 Fast Attach 13 | 6 2 2 2 1 Attach 18 | 2 2 9 3 2 Detach 4 | 1 2 1 . . Swap 33 | . 4 17 3 9 Drop 64 | . 8 21 16 19 Fire 132 | 10 46 58 6 12 Melee 27 | . . . 27 . Ram . | . . . . . Kick . | . . . . . Crush . | . . . . . Escape Stasis . | . . . . . Rewire . | . . . . . Trap 1 | . . 1 . . Miscellaneous 3 | . . 3 . . Route ------- -11/Scrapyard -10/Materials (discovered 5 exits: [*Mat x3] / [*Min] / *Sub) -10/Subcaves (discovered 3 exits: *Mat x2 / *Rec) -8/Recycling (discovered 2 exits: [*Fac] / *Scr) -8/Scraptown (discovered 1 exit: [*Fac]) History --------- Turn | Location | Event 7 | -11/Scrapyard | Discovered new exit (range 15) 163 | -11/Scrapyard | Entered Materials 314 | -10/Materials | Build established: Mutant 1056 | -10/Materials | Discovered new exit (range 9) 1162 | -10/Materials | Discovered new exit (range 15) 1497 | -10/Materials | Discovered new exit (range 6) 2447 | -10/Materials | Discovered new exit (range 16) 2675 | -10/Materials | Discovered new exit (range 16) 3969 | -10/Materials | Repaired Lgt. Treads 4601 | -10/Materials | Entered Subcaves 4601 | -10/Subcaves | Accompanied by 1 ally 4871 | -10/Subcaves | Learned location of Zion (-7) 4895 | -10/Subcaves | Discovered new exit (range 16) 4912 | -10/Subcaves | Shifting Twisted Machinery released Piercing Trap 4998 | -10/Subcaves | Released subatomizers from SUBCON Basin 5118 | -10/Subcaves | Shifting Twisted Machinery released Sub. Machine Gun 6357 | -10/Subcaves | Shifting Twisted Machinery released Spk. Treads 6380 | -10/Subcaves | Met a Zionite searching for "candidates" 6401 | -10/Subcaves | A swath of the cavern ceiling suddenly collapsed 6459 | -10/Subcaves | Visited Clippyterm 6462 | -10/Subcaves | Identified exit to Recycling 6462 | -10/Subcaves | Identified exit to Materials 6462 | -10/Subcaves | Learned Factory emergency access door positions 6550 | -10/Subcaves | Visited 4L-MR0's lab 6611 | -10/Subcaves | Found Powered Cannon 6769 | -10/Subcaves | Core integrity fell below 50% 7071 | -10/Subcaves | Shifting Twisted Machinery released Enh. Flamer 7764 | -10/Subcaves | Shifting Twisted Machinery released Sub. Beam Cannon 8746 | -10/Subcaves | Core integrity fell below 20% 9786 | -10/Subcaves | Entered Recycling 9787 | -8/Recycling | Met a Zionite searching for Scraptown 10238 | -8/Recycling | Discovered new exit (range 16) 10317 | -8/Recycling | Scanned before Scraplab entrance 10354 | -8/Recycling | Discovered new exit (range 3) 10367 | -8/Recycling | Entered Scraplab 11137 | -8/Recycling | Build established: Commander-Mutant 12100 | -8/Recycling | Entered Scraptown 12100 | -8/Scraptown | Accompanied by 10 allies 12228 | -8/Scraptown | Heard Great Nut preacher, LISTEN AND RECITE! 12557 | -8/Scraptown | Visited Cave Peace 12661 | -8/Scraptown | Visited Red Mages 12817 | -8/Scraptown | Visited Comm Corps 13382 | -8/Scraptown | Visited IN-MT5's Study 13480 | -8/Scraptown | Visited Spacefarers 14101 | -8/Scraptown | Discovered new exit (range 7) 14639 | -8/Scraptown | Visited TADAMA 14715 | -8/Scraptown | Visited Awakened 14795 | -8/Scraptown | Visited UFD Registry 14795 | -8/Scraptown | Registered with UFD as "Fluxninja" 14886 | -8/Scraptown | Visited Supply Room 14954 | -8/Scraptown | Visited Derelict Rescue Squad 15092 | -8/Scraptown | Visited DA-N13 Charitable Foundation 15105 | -8/Scraptown | Found DCF Scrap (28 items) 15255 | -8/Scraptown | Visited Supply Room 15339 | -8/Scraptown | Visited Infowarlord's Domain 15419 | -8/Scraptown | Met Optimus 15419 | -8/Scraptown | Accepted into 0bPrime 15581 | -8/Scraptown | Civil war broke out across Scraptown 15632 | -8/Scraptown | Found Scrap Suit 15750 | -8/Scraptown | Optimus destroyed in the chaos of civil war 15758 | -8/Scraptown | Found Exp. Signal Interpreter 15802 | -8/Scraptown | Found Scrap Suit 15906 | -8/Scraptown | Destroyed by MG-M3I(j) with Overtuned Pulse Rifle Last Messages --------------- 15863_ Mak. Salvage Targeting Computer fried. 15863_ OY-OU3(j) destroyed. 15866_ SU-IL4(g) destroyed. 15872_ AV-4GQ(j) destroyed. 15883_ Acquired 15 matter. 15889_ MH-RNI(E): "It's not too late to join us in victory!" 15892_ MH-RNI(E) suffers critical hit (Burn). 15892_ MH-RNI(E) destroyed. 15894_ Penetrated by Bolt. 15897_ Acquired 5 matter. 15897_ Penetrated by Bolt. 15899_ HZ-T0L(p) destroyed. 15899_ Penetrated by Bolt. 15900_ Acquired 5 matter. 15901_ 4U-7AJ(p): "0bPrime is tearing us apart, don't fall for it!" 15903_ Acquired 5 matter. 15903_ UC-60L(g) misfires. 15905_ Penetrated by Bolt. Map ----- +----------------------------------------------------+ | | | | | | | | | | | | | | | ?????????????????????????????????????????????????? | | ?????????????????????????????????????????????????? | | ?????????????????????????????????????????????????? | | ?????????????????????????????????????????????????? | | ?????????????????????????????????????????????????? | | ?????????????????????????????????????????????????? | | ?????????????????????????????????????????????????? | | ?????????????????????????????????????????????????? | | ?????????????????????????????????????????????????? | | ?????????????????????????????????????????????????? | | ?????????????????????????????????????????????????? | | ?????????????????????????????????????????????????? | | ??????????????????????????###????????????????????? | | ????????????????????????###!#????????????????????? | | ?????????????????#""????#;[=##???????%#??????????? | | ??????????????"!##!!"####===%#####![!!##?????????? | | ????????????????%!= [%!%!jh![%j[[%!#?????????? | | ???????????????????? /%=*[%=g=g[!j=!%????????????? | | ???????????????????????#!@[%p#???????????????????? | | ???????????????????????###%=%#???????????????????? | | ????##########???????????#![##???????????????????? | | ????#""""""""#???????????#!!#????????????????????? | | ????#" " & "#???????????#=%#????????????????????? | | ????#" "#???????????#*!#?#########??????????? | | ????#"" ""#???????????#%=# #??????????? | | ????#" "#?###########[[# #??????????? | | ????#"" ""#?# ##* *## # #??????????? | | ????#" & "#?#*[!##[/!##%!# #??????????? | | ????#"" ""#?# %/[][%*# =%* #??????????? | | ????# #?#!]!=|![! =*#[ #??????????? | | ????# #?# =%[*!!= !%# #??????????? | | ????# #?# !*]=/*= !!# #??????????? | | ????#### #####?#####*## !%! ########??????????? | | ######## ##########!%###=%!=* ##????????????????? | | """""""" """%"!"""!"= [=%!! "#########????????? | | !*!!%!===%=* %==![= "##""""!!#????????? | | !!%%!![%%!!%!!%%=*%%[ "## ""!!#????????? | | !==!=![[= ![%= !!=!= "# #????????? | | =%*[!=! !=%%!! ## * #????????? | | = !%!=[= * #????????? | | """"""""""""" "" " " !"%![! ## *""#????????? | | """""""""""""" """""""""="!!*= "## [[*""?????????? | | ###### ################""=%[! "## [["""?????????? | +----------------------------------------------------+ Best States ------------- Heat Dissipation 25 Energy Generation 15 Energy Capacity 275 Matter Stores 300 Matter Capacity 300 Sight Range 18 Robot Scan Range 14 Terrain Scan Range 16 Terrain Scan Density 10 Armor Coverage 225 Evasion (%) 45 Recoil Reduction 2 Authchip Count 1 Item Schematics ----------------- Power Sword | -8/Recycling | Hacked Hacking Suite | -8/Recycling | Hacked Med. Reactive Plating | -8/Recycling | Hacked Robot Schematics ------------------ W-25 Informer | -8/Recycling | Hacked Fabricated ------------ Nothing Repaired ---------- Lgt. Treads | 50% | -10/Materials Studied --------- None Alien Tech Used ----------------- None Achievements -------------- Civilization 2243 Link The Feds Mistaken Identity Myspace Network Effect Spot Them First Survival Of The Most Covered You May Approach The Wall Challenges ------------ None Game ------ Seed FireReflectivePrototype Manual? 0 Play Time 02:07:01 Cumulative 662.9 hours Start 2025.11.02 @ 00:18:40 End 2025.11.02 @ 02:37:15 Sessions 1 Manual Loads 0 Difficulty Rogue Special Mode None Game No. 452 Rogue 452 Adventurer 0 Explorer 0 Win Type - Total 1 Types 1/0/0/0/0/0/0/0/0/0 Lore% 51 Gallery% 64 Achievement% 35 Wizard Run 0 Options --------- Layout 1 ASCII 0 Keyboard 0 Movement Mouse Keybinds 0 Fullscreen 1 Font 20/SmallcapsGlow Map View 54x42 Zoom Use 0% Tactical HUD 1 Map Filters NONE Filters NONE Steam 1 RUN: 3a3823c8-580f-4b9a-bceb-fb85803c16fb